bitfinex-derivatives/quotes_SOLF0:USTF0_20250425
["timestamp","ask_amount","ask_price","bid_price","bid_amount"]
[1745614834438,11.14089545,151.81,151.74,11.14089545]
[1745614834736,11.14089545,151.78,151.76,6.5838]
[1745614835039,11.14089545,151.78,151.73,11.14089545]
[1745614835340,11.14089545,151.77,151.71,24.06]
[1745614835540,11.14089545,151.76,151.72,11.14089545]
[1745614835839,11.14089545,151.76,151.75,6.5843]
[1745614838239,17.72439545,151.77,151.75,6.5843]
[1745614839844,17.72439545,151.77,151.74,6.5845]
[1745614840043,17.72439545,151.77,151.72,11.14089545]
[1745614841042,17.72439545,151.77,151.74,6.5845]
[1745614841244,11.14089545,151.75,151.7,4.1574]
[1745614841439,11.14089545,151.75,151.71,11.14089545]
[1745614843143,11.14089545,151.73,151.7,4.1574]
[1745614844542,11.14089545,151.73,151.71,6.5858]
[1745614844842,17.72569545,151.74,151.7,4.1574]
[1745614845443,17.72569545,151.74,151.71,6.5857]
[1745614845738,6.5864,151.71,151.64,0.27877]
[1745614846043,35.22089545,151.71,151.66,11.14089545]
[1745614846343,24.08,151.71,151.68,11.14089545]
[1745614847343,24.08,151.71,151.69,6.5869]
[1745614848246,24.08,151.71,151.7,6.5865]
[1745614849144,24.08,151.71,151.69,6.5868]
[1745614849344,35.22089545,151.71,151.69,6.5868]
[1745614851839,35.22089545,151.71,151.7,6.5865]
[1745614852044,24.08,151.71,151.7,6.5865]
[1745614852847,11.14089545,151.73,151.72,6.5856]
[1745614853043,24.08,151.74,151.71,11.14089545]
[1745614853542,24.08,151.74,151.73,17.72609545]
[1745614853748,11.14089545,151.76,151.73,11.14089545]
[1745614854144,11.14089545,151.76,151.74,6.5845]
[1745614854948,11.14089545,151.76,151.73,17.72589545]
[1745614855148,11.14089545,151.76,151.73,6.585]
[1745614856149,17.72489545,151.76,151.73,6.585]
[1745614856346,11.14089545,151.76,151.73,6.585]
[1745614858047,6.5844,151.75,151.71,11.14089545]
[1745614858247,11.14089545,151.74,151.71,11.14089545]
[1745614858447,11.14089545,151.74,151.7,3.9394]
[1745614858748,17.72589545,151.74,151.7,10.5257]
[1745614859047,17.72589545,151.74,151.71,6.586]
[1745614859248,17.72589545,151.74,151.7,3.9394]
[1745614859548,17.72589545,151.74,151.7,10.5257]
[1745614860149,17.72589545,151.74,151.71,6.586]
[1745614860843,11.14089545,151.74,151.67,4.0525]
[1745614861150,24.08,151.73,151.68,11.14089545]
[1745614861350,30.6654,151.73,151.69,6.5865]
[1745614861549,30.6654,151.73,151.68,11.14089545]
[1745614861947,11.14089545,151.72,151.68,11.14089545]
[1745614862749,11.14089545,151.72,151.69,6.5868]
[1745614862945,11.14089545,151.72,151.68,11.14089545]
[1745614863750,11.14089545,151.72,151.69,6.5868]
[1745614864151,11.14089545,151.72,151.68,11.14089545]
[1745614864555,11.14089545,151.72,151.69,6.5868]
[1745614864750,11.14089545,151.72,151.68,11.14089545]
[1745614865451,11.14089545,151.72,151.7,6.5863]
[1745614866549,17.72659545,151.72,151.69,6.5868]
[1745614867755,11.14089545,151.72,151.7,6.5865]
[1745614869256,6.5857,151.72,151.69,6.5867]
[1745614869555,24.08,151.73,151.68,11.14089545]
[1745614870254,30.6654,151.73,151.68,11.14089545]
[1745614870454,30.6654,151.73,151.7,6.5863]
[1745614870653,30.6654,151.73,151.68,11.14089545]
[1745614870852,30.6654,151.73,151.7,6.5862]
[1745614871651,23.0545,151.75,151.67,4.0525]
[1745614871854,16.47,151.75,151.72,11.14089545]
[1745614872349,10.2246,151.75,151.74,17.72569545]
[1745614872550,13.81,151.76,151.74,11.14089545]
[1745614872752,24.06,151.79,151.74,11.14089545]
[1745614873657,11.14089545,151.78,151.73,11.14089545]
[1745614874057,17.72419545,151.78,151.73,11.14089545]
[1745614874255,11.14089545,151.78,151.73,11.14089545]
[1745614874957,11.14089545,151.78,151.75,6.5839]
[1745614875154,11.14089545,151.78,151.73,11.14089545]
[1745614876058,23.44089545,151.78,151.73,11.14089545]
[1745614876759,30.02419545,151.78,151.75,6.5841]
[1745614879862,17.72419545,151.78,151.75,6.5841]
[1745614882061,17.72419545,151.78,151.76,6.5838]
[1745614883166,11.14089545,151.78,151.76,6.5838]
[1745614883360,11.14089545,151.78,151.77,6.5835]
[1745614884367,11.14089545,151.78,151.76,6.5837]
[1745614885962,11.14089545,151.78,151.77,6.5835]
[1745614886861,24.06,151.79,151.73,11.14089545]
[1745614887068,24.06,151.79,151.78,6.583]
[1745614887667,24.06,151.79,151.64,837.28]
[1745614887869,11.14089545,151.76,151.69,11.14089545]
[1745614888169,17.72659545,151.72,151.67,11.14089545]
[1745614888867,17.72659545,151.72,151.69,6.5867]
[1745614889068,17.72659545,151.72,151.7,0.245]
[1745614889669,30.6461,151.71,151.7,0.245]
[1745614890565,24.06,151.71,151.7,0.245]
[1745614891669,11.14089545,151.75,151.7,11.38589545]
[1745614891870,24.06,151.73,151.7,11.38589545]
[1745614892168,24.06,151.73,151.72,6.5853]
[1745614902478,24.06,151.76,151.72,11.14089545]
[1745614902674,24.06,151.77,151.72,11.14089545]
[1745614902874,24.06,151.77,151.74,11.14089545]
[1745614903080,24.06,151.77,151.76,6.5836]
[1745614903480,11.14089545,151.79,151.78,6.583]
[1745614904577,6.5811,151.83,151.8,6.5818]
[1745614904783,24.06,151.82,151.78,11.14089545]
[1745614904978,485.16089545,151.84,151.78,11.14089545]
[1745614905184,24.06,151.83,151.82,6.5813]
[1745614905876,24.06,151.83,151.81,6.5817]
[1745614909085,24.06,151.83,151.8,17.72289545]
[1745614909785,24.06,151.83,151.8,11.14089545]
[1745614910281,24.06,151.83,151.82,6.5813]
[1745614910686,35.20089545,151.83,151.77,22.99709545]
[1745614911388,35.20089545,151.83,151.81,6.5814]
[1745614915191,35.20089545,151.83,151.82,6.5813]
[1745614915491,24.06,151.83,151.82,6.5813]
[1745614928706,24.06,151.83,151.77,11.8562]
[1745614929206,30.6411,151.83,151.8,6.5818]
[1745614929603,30.6411,151.83,151.77,11.8562]
[1745614929909,24.06,151.83,151.77,11.8562]
[1745614930307,24.06,151.83,151.82,6.5813]
[1745614930610,50.08,151.87,151.77,11.8562]
[1745614930906,50.08,151.87,151.86,6.5796]
[1745614931406,36.2,151.87,151.86,6.5796]
[1745614932007,24.02,151.87,151.86,6.5796]
[1745614935410,24.02,151.87,151.85,6.5798]
[1745614935708,24.02,151.87,151.8,24.02]
[1745614936611,24.02,151.87,151.86,6.5796]
[1745614941407,24.02,151.87,151.85,6.5798]
[1745614941710,24.02,151.87,151.79,13.1651]
[1745614942211,24.02,151.87,151.86,6.5796]
[1745614942705,14.61,151.9,151.89,6.5783]
[1745614942902,38.63,151.9,151.89,6.5783]
[1745614943107,24.02,151.9,151.89,6.5783]
[1745614943308,484.96,151.91,151.9,6.5778]
[1745614943505,498.32,151.91,151.9,6.5778]
[1745614943914,474.3,151.91,151.9,6.5778]
[1745614944111,24.02,151.91,151.9,6.5778]
[1745614944509,6.5758,151.95,151.92,6.5769]
[1745614944812,24.02,151.94,151.83,11.8176]
[1745614945107,30.5963,151.94,151.83,11.8176]
[1745614945312,30.5963,151.94,151.9,6.5775]
[1745614946111,45.9063,151.94,151.9,6.5775]
[1745614946412,6.5766,151.93,151.83,11.8176]
[1745614946713,39.33,151.94,151.83,11.8176]
[1745614947006,39.33,151.94,151.9,6.5776]
[1745614947212,10.13,151.93,151.83,11.8176]
[1745614947709,6.577,151.92,151.89,6.5779]
[1745614947913,10.13,151.93,151.89,6.5779]
[1745614948416,16.7067,151.93,151.89,6.5779]
[1745614949015,16.7067,151.93,151.9,6.5777]
[1745614950214,6.577,151.92,151.9,6.5777]
[1745614950414,10.13,151.93,151.9,6.5777]
[1745614950820,16.7067,151.93,151.9,6.5777]
[1745614951617,16.7067,151.93,151.91,6.5773]
[1745614953618,10.13,151.93,151.92,6.577]
[1745614953918,45.9062,151.94,151.92,6.577]
[1745614954318,39.33,151.94,151.92,6.577]
[1745614954920,39.33,151.94,151.93,6.5765]
[1745614955218,24.02,151.94,151.93,6.5765]
[1745614955621,3.9396,151.98,151.86,13.1587]
[1745614955822,24.02,151.97,151.86,13.1587]
[1745614956119,24.02,151.97,151.95,6.5752]
[1745614957322,24.02,151.97,151.87,13.1582]
[1745614958022,6.5756,151.96,151.93,6.5762]
[1745614958321,6.5756,151.96,151.87,13.1582]
[1745614958923,6.5756,151.96,151.93,6.5763]
[1745614959220,6.5758,151.95,151.87,13.1582]
[1745614959418,37.91,151.97,151.85,24.02]
[1745614959818,6.5763,151.94,151.92,6.5769]
[1745614960021,24.0,151.93,151.92,6.5769]
[1745614960321,24.0,151.93,151.91,6.5772]
[1745614961321,24.0,151.93,151.85,24.02]
[1745614961822,24.0,151.93,151.92,6.577]
[1745614964023,24.0,151.96,151.88,13.1573]
[1745614964322,24.0,151.96,151.89,12.0653]
[1745614964521,24.0,151.96,151.95,6.5755]
[1745614978032,13.89,151.97,151.96,6.5752]
[1745614978336,37.89,151.97,151.96,6.5752]
[1745614981440,37.89,151.97,151.89,36.0653]
[1745614981641,37.89,151.97,151.89,12.0653]
[1745614981937,6.5753,151.96,151.93,6.5763]
[1745614982432,37.89,151.97,151.87,13.1577]
[1745614982737,6.5759,151.95,151.91,6.577]
[1745614982937,6.5759,151.95,151.87,13.1577]
[1745614983140,6.5759,151.95,151.92,6.5769]
[1745614987037,6.5763,151.94,151.92,6.5769]
[1745614987238,24.0,151.93,151.91,6.5772]
[1745614987444,24.0,151.92,151.91,6.5772]
[1745614988840,24.0,151.92,151.85,24.0]
[1745614989042,24.0,151.92,151.84,11.9497]
[1745614989344,30.5773,151.92,151.89,6.578]
[1745614990946,30.5773,151.92,151.9,6.5777]
[1745614992046,24.0,151.92,151.91,6.5774]
[1745614997750,6.5766,151.93,151.91,6.5774]
[1745614998052,18.0563,151.94,151.91,6.5774]
[1745615000258,18.0563,151.94,151.92,6.5768]
[1745615001255,18.0563,151.94,151.91,6.5772]
[1745615001455,6.5765,151.93,151.84,11.9497]
[1745615001757,6.5765,151.93,151.91,6.5774]
[1745615002058,18.0563,151.94,151.91,6.5774]
[1745615002656,6.5766,151.93,151.91,6.5774]
[1745615005660,6.5771,151.92,151.9,6.5777]
[1745615005856,23.98,151.91,151.84,11.9497]
[1745615006261,23.98,151.91,151.89,6.5781]
[1745615006762,23.98,151.91,151.9,6.5778]
[1745615007961,23.98,151.91,151.89,6.5781]
[1745615008652,23.98,151.91,151.84,11.9497]
[1745615009255,6.578,151.9,151.84,11.9497]
[1745615009557,17.258,151.9,151.84,11.9497]
[1745615010362,17.258,151.9,151.87,6.5789]
[1745615012163,17.258,151.9,151.88,6.5787]
[1745615013762,10.68,151.9,151.84,4.1159]
[1745615014160,10.68,151.9,151.89,6.5783]
[1745615016563,23.98,151.91,151.9,6.5778]
[1745615034371,37.8,151.93,151.92,6.577]
[1745615037578,13.84,151.93,151.92,6.577]
[1745615037777,37.8,151.93,151.92,6.577]
[1745615047584,473.8,151.98,151.88,13.1571]
[1745615047784,23.96,151.97,151.89,3.9365]
[1745615048184,23.96,151.97,151.96,6.575]
[1745615049385,497.76,151.98,151.97,6.5748]
[1745615049990,23.96,151.98,151.97,6.5748]
[1745615052689,23.96,151.98,151.9,21.057]
[1745615052989,30.5346,151.98,151.9,21.057]
[1745615053687,30.5346,151.98,151.95,6.5754]
[1745615054393,6.5748,151.97,151.95,6.5754]
[1745615055091,6.5748,151.97,151.94,6.5759]
[1745615055392,6.5748,151.97,151.89,3.9365]
[1745615055691,30.5346,151.98,151.89,3.9365]
[1745615055891,30.5346,151.98,151.95,6.5754]
[1745615056192,30.5346,151.98,151.89,3.9365]
[1745615056587,30.5346,151.98,151.95,6.5753]
[1745615058991,6.5748,151.97,151.95,6.5753]
[1745615059593,30.5345,151.98,151.95,6.5753]
[1745615060293,30.5345,151.98,151.96,6.5751]
[1745615060495,23.96,151.98,151.89,3.9365]
[1745615060995,30.5344,151.98,151.89,3.9365]
[1745615061995,30.5344,151.98,151.95,6.5755]
[1745615062295,30.5344,151.98,151.89,3.9365]
[1745615062590,30.5344,151.98,151.95,6.5755]
[1745615062994,30.5344,151.98,151.89,3.9365]
[1745615063896,30.5344,151.98,151.95,6.5754]
[1745615065898,30.5344,151.98,151.96,6.5752]
[1745615066196,23.96,151.98,151.89,3.9365]
[1745615066398,23.96,151.98,151.94,6.5759]
[1745615066594,6.5752,151.97,151.94,6.5759]
[1745615066898,23.96,151.98,151.96,6.5752]
[1745615067197,23.96,151.98,151.89,3.9365]
[1745615067796,30.5347,151.98,151.89,3.9365]
[1745615068096,23.96,151.98,151.89,3.9365]
[1745615068296,6.5752,151.97,151.89,3.9365]
[1745615068496,23.96,151.98,151.89,3.9365]
[1745615068697,15.44,151.97,151.94,6.5759]
[1745615068899,22.015,151.97,151.94,6.5759]
[1745615070399,22.015,151.97,151.95,6.5755]
[1745615071013,15.44,151.97,151.96,6.5752]
[1745615071202,30.5345,151.98,151.96,6.5752]
[1745615071602,23.96,151.98,151.97,6.5748]
[1745615073303,23.96,151.98,151.96,6.575]
[1745615073902,23.96,151.98,151.97,6.5748]
[1745615075200,6.5737,152.0,151.97,6.5748]
[1745615075405,488.0866,152.01,151.9,13.155]
[1745615075706,23.94,152.0,151.89,3.9365]
[1745615076107,23.94,152.0,151.99,6.5739]
[1745615079709,23.94,152.0,151.98,6.5741]
[1745615080911,480.2332,152.01,151.98,6.5741]
[1745615081109,23.92,152.0,151.98,6.5741]
[1745615081309,480.2332,152.01,151.98,6.5741]
[1745615081511,30.4936,152.0,151.98,6.5741]
[1745615082302,23.92,151.99,151.98,6.5741]
[1745615082711,6.5736,152.0,151.98,6.5741]
[1745615082911,23.92,151.99,151.98,6.5741]
[1745615083712,6.5736,152.0,151.98,6.5741]
[1745615083915,23.92,151.99,151.98,6.5741]
[1745615084310,6.5736,152.0,151.98,6.5741]
[1745615084612,23.92,151.99,151.98,6.5741]
[1745615085209,6.5736,152.0,151.98,6.5741]
[1745615085507,23.92,151.99,151.98,6.5741]
[1745615086107,6.5736,152.0,151.98,6.5741]
[1745615086313,480.2333,152.01,151.98,6.5741]
[1745615086513,23.92,152.0,151.98,6.5741]
[1745615087214,30.4936,152.0,151.98,6.5741]
[1745615087515,6.5736,152.0,151.98,6.5741]
[1745615087716,23.92,151.99,151.98,6.5741]
[1745615089614,480.2331,152.01,151.99,6.5739]
[1745615089811,23.92,152.0,151.99,6.5739]
[1745615093323,23.92,152.0,151.91,37.0944]
[1745615093823,23.92,152.0,151.98,6.5741]
[1745615100330,23.92,152.0,151.89,3.9365]
[1745615101229,3.7954,151.99,151.89,3.9365]
[1745615101432,6.5752,151.96,151.93,6.5764]
[1745615101631,23.92,151.95,151.93,6.5764]
[1745615102431,23.92,151.95,151.94,6.5761]
[1745615104731,23.92,151.95,151.93,6.5764]
[1745615105032,23.92,151.95,151.89,3.9365]
[1745615105534,23.92,151.95,151.94,6.5761]
[1745615106031,23.92,151.95,151.89,3.9365]
[1745615106330,23.92,151.95,151.83,23.94]
[1745615106534,6.5763,151.94,151.83,35.5753]
[1745615108632,6.5763,151.94,151.91,6.5773]
[1745615110639,23.92,151.95,151.9,6.5777]
[1745615111539,6.5766,151.93,151.9,6.5777]
[1745615111739,6.5766,151.93,151.91,6.5773]
[1745615113643,23.92,151.95,151.83,35.5553]
[1745615114242,23.92,151.95,151.93,6.5763]
[1745615115242,6.5754,151.96,151.93,6.5763]
[1745615115541,23.92,151.94,151.93,6.5763]
[1745615115842,6.5754,151.96,151.93,6.5763]
[1745615116142,23.92,151.95,151.93,6.5763]
[1745615116344,6.5754,151.96,151.93,6.5763]
[1745615116640,23.92,151.94,151.93,6.5763]
[1745615118239,12.85,151.97,151.83,35.5553]
[1745615118437,36.77,151.97,151.96,6.5752]
[1745615118741,23.92,151.97,151.96,6.5752]
[1745615125044,488.23,152.01,151.9,13.1554]
[1745615125347,23.92,152.0,151.9,13.1554]
[1745615126245,23.92,152.0,151.99,6.5738]
[1745615129150,23.92,152.0,151.92,23.92]
[1745615129752,14.89,151.99,151.92,23.92]
[1745615130350,14.89,151.99,151.98,6.5744]
[1745615131353,10.7771,151.99,151.98,6.5744]
[1745615132958,23.9,152.02,152.01,6.5728]
[1745615133262,23.9,152.03,152.01,6.5728]
[1745615136361,30.4723,152.03,152.01,6.5728]
[1745615136659,23.9,152.03,152.01,6.5728]
[1745615137561,30.4723,152.03,152.0,6.5733]
[1745615137861,30.4723,152.03,151.95,2.6972]
[1745615138660,30.4723,152.03,152.0,6.5732]
[1745615140165,30.4723,152.03,152.01,6.573]
[1745615145666,23.9,152.03,151.95,2.6972]
[1745615146166,6.5733,152.01,151.98,6.574]
[1745615148265,6.5733,152.01,151.99,6.5739]
[1745615148465,6.5729,152.02,151.99,6.5739]
[1745615149870,6.5729,152.02,152.0,6.5735]
[1745615150466,6.5729,152.02,151.99,6.5738]
[1745615151272,6.5732,152.01,151.99,6.5738]
[1745615152972,23.9,152.03,151.97,6.5748]
[1745615153271,2.7312,152.02,151.97,6.5748]
[1745615153769,6.5737,152.0,151.97,6.5748]
[1745615153969,23.9,151.99,151.97,6.5748]
[1745615157674,23.9,151.99,151.98,6.5744]
[1745615158176,23.9,151.99,151.89,37.0564]
[1745615158371,23.9,151.99,151.97,6.5746]
[1745615158976,30.474,151.99,151.96,6.575]
[1745615160678,23.9,151.99,151.97,6.5748]
[1745615161479,30.474,151.99,151.97,6.5748]
[1745615161671,23.9,151.99,151.98,6.5744]
[1745615180194,23.9,151.99,151.9,13.1549]
[1745615181194,23.9,151.99,151.98,6.5744]
[1745615188393,23.9,151.99,151.9,37.0349]
[1745615188892,23.88,152.03,151.9,23.88]
[1745615189097,23.88,152.03,152.02,6.5726]
[1745615190700,473.54,152.04,152.02,6.5726]
[1745615190895,497.42,152.04,152.02,6.5726]
[1745615191401,497.42,152.04,152.01,6.5729]
[1745615191701,497.42,152.04,151.96,7.7656]
[1745615192699,503.992,152.04,152.0,6.5733]
[1745615193804,497.42,152.04,151.96,7.7656]
[1745615194303,6.5729,152.02,151.98,6.574]
[1745615195107,6.5729,152.02,151.99,6.5738]
[1745615197105,6.5724,152.03,152.0,6.5735]
[1745615197903,6.5728,152.02,151.99,6.5737]
[1745615203709,6.5728,152.02,152.0,6.5734]
[1745615206113,6.5723,152.03,152.01,6.5731]
[1745615206407,6.5723,152.03,151.96,7.7656]
[1745615206408,497.42,152.04,151.96,7.7656]
[1745615206814,23.88,152.04,151.96,7.7656]
[1745615207414,6.5715,152.05,152.02,6.5723]
[1745615207714,30.4315,152.05,152.02,6.5723]
[1745615208210,23.86,152.05,151.96,7.7656]
[1745615210019,30.4316,152.05,151.96,7.7656]
[1745615212124,23.86,152.05,151.96,7.7656]
[1745615213225,30.4313,152.05,151.96,7.7656]
[1745615216527,47.9413,152.05,151.96,7.7656]
[1745615218132,41.37,152.05,151.96,7.7656]
[1745615220228,47.9417,152.05,151.96,7.7656]
[1745615220932,41.37,152.05,151.96,7.7656]
[1745615224337,47.9414,152.05,151.96,7.7656]
[1745615227136,41.37,152.05,151.96,7.7656]
[1745615227636,41.37,152.05,151.97,23.86]
[1745615227830,6.5724,152.03,151.97,23.86]
[1745615229437,6.5719,152.04,151.97,23.86]
[1745615230237,6.5723,152.03,151.97,23.86]
[1745615230436,6.5723,152.03,151.96,7.7656]
[1745615235038,6.572,152.04,151.96,7.7656]
[1745615236035,41.37,152.05,151.96,7.7656]
[1745615240033,17.51,152.05,151.96,7.7656]
[1745615243737,17.51,152.05,152.04,6.5718]
[1745615244139,23.84,152.08,152.02,23.84]
[1745615244438,23.84,152.08,152.06,6.5706]
[1745615244634,473.36,152.18,152.02,23.84]
[1745615244937,2.5105,152.14,152.02,23.84]
[1745615245136,23.84,152.13,152.02,23.84]
[1745615245640,23.84,152.13,152.03,13.1444]
[1745615245934,23.84,152.13,152.12,6.5683]
[1745615246131,2.5105,152.14,152.12,6.5683]
[1745615246534,2.5105,152.14,152.13,6.5679]
[1745615247940,971.7304712,152.38,152.13,3776.62]
[1745615248131,955.5915712,152.38,152.13,3776.62]
[1745615248337,951.5567712,152.38,152.15,19.701]
[1745615248639,975.3967712,152.38,152.19,13.1304]
[1745615248840,951.5567712,152.38,152.2,23.84]
[1745615249138,913.4126712,152.38,152.37,6.5575]
[1745615249333,889.7403712,152.38,152.37,6.5575]
[1745615249532,889.7403712,152.38,152.37,13.4648646]
[1745615249942,889.7403712,152.38,152.37,6.9073646]
[1745615250339,807.94052459,152.38,152.37,6.9073646]
[1745615250538,807.94052459,152.38,152.37,13.4648646]
[1745615251038,807.94052459,152.38,152.37,6.9073646]
[1745615251741,807.94052459,152.38,152.37,13.4648646]
[1745615252244,807.94052459,152.38,152.37,6.9073646]
[1745615253042,807.94052459,152.38,152.37,6.86340792]
[1745615253342,807.94052459,152.38,152.37,2.83560792]
[1745615253744,807.94052459,152.38,152.37,9.39310792]
[1745615254240,766.92252459,152.38,152.37,9.39310792]
[1745615254549,690.79432459,152.38,152.37,9.39310792]
[1745615254847,671.13462459,152.38,152.37,9.39310792]
[1745615255043,667.10582459,152.38,152.37,9.39310792]
[1745615255243,644.75952459,152.38,152.37,12.31527688]
[1745615255443,578.28729338,152.38,152.37,15.95310792]
[1745615255643,561.08879338,152.38,152.37,15.95310792]
[1745615256342,539.18329338,152.38,152.37,9.39310792]
[1745615256542,506.56599338,152.38,152.37,9.39310792]
[1745615256742,494.11239338,152.38,152.37,9.39310792]
[1745615257045,494.11239338,152.38,152.37,15.95310792]
[1745615258246,493.91553007,152.38,152.37,18.85777017]
[1745615258746,492.88643007,152.38,152.37,18.85256939]
[1745615259245,489.60974946,152.38,152.37,18.85256939]
[1745615259447,489.60974946,152.38,152.37,18.85184755]
[1745615259747,484.69476358,152.38,152.37,381.85184755]
[1745615261150,484.69476358,152.38,152.37,375.29184755]
[1745615261449,483.74760507,152.38,152.37,397.47310792]
[1745615261850,483.74760507,152.38,152.37,9.39310792]
[1745615262054,483.74760507,152.38,152.37,34.47310792]
[1745615262452,483.74760507,152.38,152.37,25.08]
[1745615262949,483.74760507,152.38,152.3,365.5984]
[1745615263149,483.74760507,152.38,152.31,26.14]
[1745615265447,483.74760507,152.38,152.32,6.46191492]
[1745615265654,483.74760507,152.38,152.33,32.58191492]
[1745615265854,483.74760507,152.38,152.34,6.46191492]
[1745615266054,483.74760507,152.38,152.35,6.46191492]
[1745615266253,483.74760507,152.38,152.36,6.46191492]
[1745615266554,483.74760507,152.38,152.37,32.58191492]
[1745615269050,483.74760507,152.38,152.37,20.48171492]
[1745615272061,490.30480507,152.38,152.27,7.4826]
[1745615272261,490.30480507,152.38,152.3,26.12]
[1745615272961,483.74760507,152.38,152.3,26.12]
[1745615276265,483.74760507,152.38,152.37,6.5575]
[1745615276465,483.74760507,152.38,152.37,32.6975]
[1745615276767,483.74760507,152.38,152.37,26.14]
[1745615280872,483.74760507,152.38,152.37,18.0686]
[1745615281273,483.74760507,152.38,152.34,32.6986]
[1745615281573,483.74760507,152.38,152.34,26.14]
[1745615281774,483.74760507,152.38,152.28,2.4867]
[1745615281973,483.74760507,152.38,152.3,26.14]
[1745615282275,483.74760507,152.38,152.32,6.5595]
[1745615282471,483.74760507,152.38,152.3,26.14]
[1745615282774,6.5576,152.37,152.32,6.5595]
[1745615283977,6.5576,152.37,152.33,6.38591035]
[1745615284177,6.5576,152.37,152.34,6.38591035]
[1745615284473,6.5576,152.37,152.35,6.39690452]
[1745615284776,6.5576,152.37,152.36,6.39690452]
[1745615284978,490.30490507,152.38,152.36,6.39690452]
[1745615285176,483.74760507,152.38,152.37,6.39690452]
[1745615287574,483.74760507,152.38,152.37,9.33417684]
[1745615287779,483.74760507,152.38,152.37,6.39690452]
[1745615288379,483.74760507,152.38,152.37,9.34101202]
[1745615289285,490.30470507,152.38,152.37,9.34101202]
[1745615291485,483.74760507,152.38,152.37,9.34101202]
[1745615292084,490.30470507,152.38,152.37,9.34101202]
[1745615292286,483.74760507,152.38,152.37,9.46286688]
[1745615292487,478.82827925,152.38,152.37,9.46286688]
[1745615292685,478.82827925,152.38,152.37,9.49757274]
[1745615292883,478.82827925,152.38,152.37,2.98189409]
[1745615293881,478.82827925,152.38,152.37,9.53939409]
[1745615294086,478.82827925,152.38,152.37,6.5575]
[1745615294286,478.82827925,152.38,152.37,9.54296148]
[1745615296291,478.82827925,152.38,152.37,2.98546148]
[1745615296793,478.82827925,152.38,152.36,25.7]
[1745615297091,478.82827925,152.38,152.34,6.5586]
[1745615298691,478.82827925,152.38,152.33,25.7]
[1745615299290,478.82827925,152.38,152.35,6.5581]
[1745615299692,478.82827925,152.38,152.33,25.7]
[1745615300386,478.82827925,152.38,152.37,6.5575]
[1745615301197,478.82827925,152.38,152.37,32.2575]
[1745615303192,478.82827925,152.38,152.37,25.7]
[1745615303382,478.82827925,152.38,152.34,25.7]
[1745615305288,478.82827925,152.38,152.37,6.5575]
[1745615308695,478.82827925,152.38,152.36,6.5578]
[1745615309294,478.82827925,152.38,152.37,6.5575]
[1745615311100,478.82827925,152.38,152.36,6.5578]
[1745615311601,478.82827925,152.38,152.34,25.7]
[1745615312202,478.82827925,152.38,152.36,6.5579]
[1745615314102,478.82827925,152.38,152.37,6.5575]
[1745615317505,468.97597925,152.38,152.37,6.5575]
[1745615317802,440.98767925,152.38,152.37,6.5575]
[1745615318400,413.31537925,152.38,152.37,6.5575]
[1745615318605,376.32017925,152.38,152.37,6.5575]
[1745615318805,352.02377925,152.38,152.37,6.5575]
[1745615319500,319.32547925,152.38,152.37,6.5575]
[1745615319706,296.21177925,152.38,152.37,6.5575]
[1745615326910,296.21177925,152.38,152.37,25.36]
[1745615336118,296.21177925,152.38,152.35,25.36]
[1745615338319,296.21177925,152.38,152.34,6.5585]
[1745615338518,296.21177925,152.38,152.34,31.9185]
[1745615338819,302.76897925,152.38,152.34,25.36]